lending/lending_fUSD_20260222
["ID","MTS","AMOUNT","RATE_DAILY","PERIOD"]
[406327374,1771746638528,-240.667172,0.00033909,31]
[406327376,1771746638537,-809.357874,0.00033909,7]
[406327378,1771746638546,-240.667172,0.00033909,31]
[406327380,1771746638556,-809.357874,0.00033909,7]
[406327382,1771746638566,-240.667172,0.00033909,31]
[406327384,1771746638576,-809.357874,0.00033909,7]
[406327386,1771746638586,-217.26,0.00034034,2]
[406327388,1771746638595,-220.93223047,0.00034237,2]
[406327390,1771746638604,-2202.22,0.00034355,2]
[406327392,1771746638614,-543.0,0.00034548,2]
[406327394,1771746638625,-242.0,0.00034548,2]
[406327396,1771746638634,-217.26,0.00034653,2]
[406327398,1771746638644,-1500.0,0.00034795,2]
[406327400,1771746638654,-2202.22,0.00034801,2]
[406327402,1771746638664,-370.37247974,0.0003488,120]
[406327404,1771746638673,-7545.94806156,0.000349,2]
[406327406,1771746638683,-396.55837091,0.000349,2]
[406327408,1771746638696,-10477.0,0.00034965,5]
[406327410,1771746638706,-428.69,0.0003499,2]
[406327412,1771746638715,-21780.06,0.00035,2]
[406327414,1771746638724,-1000.0,0.00035228,2]
[406327416,1771746638734,-1000.0,0.00035228,2]
[406327418,1771746638743,-1000.0,0.00035228,2]
[406327420,1771746638752,-1000.0,0.00035228,2]
[406327422,1771746638761,-1000.0,0.00035228,2]
[406327424,1771746638770,-2202.22,0.00035247,2]
[406327426,1771746638780,-217.26,0.00035273,2]
[406327428,1771746638790,-1374.68,0.000353,2]
[406327430,1771746638799,-428.69,0.00035328,2]
[406327432,1771746638810,-467.8,0.0003552,5]
[406327434,1771746638819,-354.532836,0.00035589,120]
[406327436,1771746638829,-510.0,0.00035589,30]
[406327438,1771746638838,-177.83975093,0.00035616,7]
[406327440,1771746638848,-245.87,0.00035616,2]
[406327442,1771746638858,-428.69,0.00035665,2]
[406327444,1771746638869,-5668.83434503,0.0003569,2]
[406327446,1771746638882,-2202.22,0.00035694,2]
[406327448,1771746638892,-151.0,0.00035782,2]
[406327450,1771746638902,-1000.0,0.00035782,2]
[406327452,1771746638911,-1000.0,0.00035782,2]
[406327454,1771746638922,-1000.0,0.00035782,2]
[406327456,1771746638932,-1000.0,0.00035782,2]
[406327458,1771746638942,-1000.0,0.00035782,2]
[406327460,1771746638954,-1000.0,0.00035782,2]
[406327462,1771746638963,-1000.0,0.00035782,2]
[406327464,1771746638973,-1000.0,0.00035782,2]
[406327466,1771746638983,-1000.0,0.00035782,2]
[406327468,1771746638993,-1000.0,0.00035782,2]
[406327470,1771746639003,-277.35679052,0.00035782,2]
[406327472,1771746639012,-1000.0,0.00035782,2]
[406327474,1771746639022,-500.0,0.00035782,2]
[406327476,1771746639031,-500.0,0.00035782,2]
[406327478,1771746639041,-500.0,0.00035782,2]
[406327480,1771746639051,-500.0,0.00035782,2]
[406327482,1771746639060,-500.0,0.00035782,2]
[406327484,1771746639069,-500.0,0.00035782,2]
[406327486,1771746639078,-500.0,0.00035782,2]
[406327488,1771746639087,-500.0,0.00035782,2]
[406327490,1771746639097,-500.0,0.00035782,2]
[406327492,1771746639107,-500.0,0.00035782,2]
[406327494,1771746639116,-500.0,0.00035782,2]
[406327496,1771746639125,-174.61919141,0.00035782,2]
[406327498,1771746639135,-200.0,0.00035782,2]
[406327500,1771746639144,-200.0,0.00035782,2]
[406327502,1771746639154,-855.12946363,0.00035782,2]
[406327504,1771746639163,-300.0,0.00035782,2]
[406327506,1771746639173,-300.0,0.00035782,2]
[406327508,1771746639182,-250.0,0.00035782,2]
[406327510,1771746639191,-300.0,0.00035782,2]
[406327512,1771746639201,-250.0,0.00035782,2]
[406327514,1771746639210,-300.0,0.00035782,2]
[406327516,1771746639219,-693.3919763,0.00035782,2]
[406327518,1771746639230,-300.0,0.00035782,2]
[406327520,1771746639239,-300.0,0.00035782,2]
[406327522,1771746639248,-300.0,0.00035782,2]
[406327524,1771746639257,-300.0,0.00035782,2]
[406327526,1771746639266,-300.0,0.00035782,2]
[406327528,1771746639275,-300.0,0.00035782,2]
[406327530,1771746639284,-151.0,0.00035782,2]
[406327532,1771746639293,-300.0,0.00035782,2]
[406327534,1771746639303,-156.587,0.00035782,2]
[406327536,1771746639312,-162.380719,0.00035782,2]
[406327538,1771746639322,-159.59027807,0.00035782,2]
[406327540,1771746639331,-250.0,0.00035782,2]
[406327542,1771746639341,-250.0,0.00035782,2]
[406327544,1771746639351,-500.0,0.00035782,2]
[406327546,1771746639360,-500.0,0.00035782,2]
[406327548,1771746639370,-151.0,0.00035837,2]
[406327550,1771746639379,-719.04747942,0.00035837,2]
[406327552,1771746639389,-151.0,0.00035892,2]
[406327554,1771746639399,-745.65223616,0.00035892,2]
[406327556,1771746639408,-151.0,0.0003591,31]
[406327557,1771746639418,-151.0,0.0003591,31]
[406327559,1771746639427,-233.108796,0.0003591,31]
[406327561,1771746639436,-233.108796,0.0003591,31]
[406327562,1771746639446,-233.108796,0.0003591,31]
[406327563,1771746639455,-233.108796,0.0003591,31]
[406327564,1771746639464,-151.0,0.00035947,2]
[406327565,1771746639475,-773.2413689,0.00035947,2]
[406327566,1771746639484,-151.0,0.00036002,2]
[406327567,1771746639494,-801.85129955,0.00036002,2]
[406327569,1771746639503,-151.0,0.00036004,31]
[406327571,1771746639513,-1407.759497,0.00036004,31]
[406327572,1771746639523,-1407.759497,0.00036004,31]
[406327573,1771746639532,-1407.759497,0.00036004,31]
[406327574,1771746639541,-1407.759497,0.00036004,31]
[406327575,1771746639551,-151.0,0.00036004,31]
[406327576,1771746639560,-151.0,0.00036004,31]
[406327577,1771746639570,-151.0,0.00036004,31]
[406327578,1771746639579,-151.0,0.00036004,31]
[406327579,1771746639589,-201.787568,0.00036004,31]
[406327580,1771746639599,-151.0,0.00036004,31]
[406327581,1771746639608,-260.064631,0.00036004,31]
[406327582,1771746639617,-2214.242032,0.00036004,28]
[406327583,1771746639627,-2214.242032,0.00036004,28]
[406327584,1771746639636,-2214.242032,0.00036004,28]
[406327585,1771746639647,-2214.242032,0.00036004,28]
[406327586,1771746639656,-1734.087404,0.00036004,31]
[406327587,1771746639666,-1734.087404,0.00036004,31]
[406327588,1771746639675,-1734.087404,0.00036004,31]
[406327589,1771746639684,-1734.087404,0.00036004,31]
[406327590,1771746639694,-22900.74618278,0.0003605,2]
[406327591,1771746639705,-151.0,0.00036057,2]
[406327592,1771746639715,-831.51979763,0.00036057,2]
[406327593,1771746639724,-1038.5,0.00036067,5]
[406327594,1771746639735,-151.0,0.00036112,2]
[406327595,1771746639744,-862.28603014,0.00036112,2]
[406327596,1771746639754,-2202.22,0.0003614,2]
[406327597,1771746639763,-151.0,0.00036167,2]
[406327598,1771746639773,-894.19061326,0.00036167,2]
[406327599,1771746639783,-151.0,0.00036222,2]
[406327600,1771746639793,-927.27566595,0.00036222,2]
[406327601,1771746639803,-151.0,0.00036277,2]
[406327602,1771746639812,-961.58486559,0.00036277,2]
[406327603,1771746639822,-287.61899177,0.0003633,2]
[406327604,1771746639832,-181.08010149,0.0003633,2]
[406327605,1771746639841,-997.16350561,0.00036332,2]
[406327606,1771746639851,-301.99,0.00036496,60]
[406327607,1771746639861,-21780.06,0.000365,2]
[406327608,1771746639871,-1038.5,0.00036551,7]
[406327609,1771746639883,-2283.54,0.00036557,2]
[406327610,1771746639893,-2202.22,0.00036586,2]
[406327611,1771746640047,-298.26089446,0.00036878,2]
[406327612,1771746640057,-187.78006525,0.00036878,2]
[406327613,1771746640066,-1000.0,0.00036934,2]
[406327614,1771746640075,-3085.185,0.00037029,47]
[406327615,1771746640085,-254.302,0.00037029,47]
[406327616,1771746640094,-151.0,0.00037032,31]
[406327617,1771746640103,-151.0,0.00037032,31]
[406327618,1771746640113,-151.0,0.00037032,31]
[406327619,1771746640122,-151.0,0.00037032,31]
[406327620,1771746640131,-151.0,0.00037032,31]
[406327621,1771746640140,-245.299121,0.00037032,31]
[406327622,1771746640149,-245.299121,0.00037032,31]
[406327623,1771746640158,-245.299121,0.00037032,31]
[406327624,1771746640167,-245.299121,0.00037032,31]
[406327625,1771746640176,-2202.22,0.00037032,2]
[406327626,1771746640185,-763.49,0.00037036,2]
[406327627,1771746640193,-1038.5,0.00037036,7]
[406327628,1771746640202,-150.0,0.00037097,2]
[406327629,1771746640211,-200.0,0.00037123,2]
[406327630,1771746640221,-8899.10478497,0.00037318,2]
[406327631,1771746640230,-309.29654756,0.00037426,2]
[406327632,1771746640239,-194.72792766,0.00037426,2]
[406327633,1771746640248,-467.8,0.00037445,7]
[406327634,1771746640257,-162.323072,0.00037478,31]
[406327635,1771746640267,-162.323072,0.00037478,31]
[406327636,1771746640276,-162.323072,0.00037478,31]
[406327637,1771746640285,-162.323072,0.00037478,31]
[406327638,1771746640294,-1000.0,0.00037478,2]
[406327639,1771746640303,-1000.0,0.00037478,2]
[406327640,1771746640312,-1000.0,0.00037478,2]
[406327641,1771746640321,-1000.0,0.00037478,2]
[406327642,1771746640330,-1000.0,0.00037478,2]
[406327643,1771746640339,-1098.594962,0.00037478,2]
[406327644,1771746640348,-2202.22,0.00037478,2]
[406327645,1771746640357,-1374.68,0.000375,2]
[406327646,1771746640366,-1038.5,0.0003752,7]
[406327647,1771746640375,-2202.22,0.00037924,2]
[406327648,1771746640385,-419.62464301,0.00037974,2]
[406327649,1771746640394,-201.93286099,0.00037974,2]
[406327650,1771746640403,-1038.5,0.00038005,7]
[406327651,1771746640413,-21780.06,0.000381,2]
[406327652,1771746640421,-362.357784,0.000381,31]
[406327653,1771746640431,-362.357784,0.000381,31]
[406327654,1771746640440,-362.357784,0.000381,31]
[406327655,1771746640449,-362.357788,0.000381,31]
[406327656,1771746640458,-240.667172,0.000381,31]
[406327657,1771746640467,-809.357874,0.000381,7]
[406327658,1771746640476,-240.667172,0.000381,31]
[406327659,1771746640485,-809.357874,0.000381,7]
[406327660,1771746640495,-240.667172,0.000381,31]
[406327661,1771746640503,-809.357874,0.000381,7]
[406327662,1771746640513,-240.667175,0.000381,31]
[406327663,1771746640521,-809.357874,0.000381,7]
[406327664,1771746640530,-2202.22,0.00038371,2]
[406327665,1771746640539,-1038.5,0.00038489,30]
[406327666,1771746640548,-209.40437684,0.00038522,2]
[406327667,1771746640557,-500.0,0.00038793,8]
[406327668,1771746640567,-500.0,0.00038793,8]
[406327669,1771746640576,-2202.22,0.00038817,2]
[406327670,1771746640585,-5668.83434503,0.00038836,2]
[406327671,1771746640594,-3501.124,0.00038954,2]
[406327672,1771746640603,-1040.0,0.00038954,2]
[406327673,1771746640612,-1276.0,0.00038954,2]
[406327674,1771746640621,-2454.0,0.00038954,2]
[406327675,1771746640630,-151.0,0.00038955,14]
[406327676,1771746640639,-151.0,0.00038955,14]
[406327677,1771746640648,-151.0,0.00038955,14]
[406327678,1771746640657,-1038.5,0.00038973,30]
[406327679,1771746640665,-151.0,0.00039022,120]
[406327680,1771746640674,-211.224642,0.00039022,120]
[406327681,1771746640684,-500.607492,0.00039022,120]
[406327682,1771746640694,-500.607492,0.00039022,120]
[406327683,1771746640703,-500.607492,0.00039022,120]
[406327684,1771746640712,-500.607492,0.00039022,120]
[406327685,1771746640720,-151.0,0.00039022,120]
[406327686,1771746640729,-217.15233878,0.0003907,2]
[406327687,1771746640739,-22900.74618278,0.00039076,2]
[406327688,1771746640748,-200.0,0.00039183,2]
[406327689,1771746640757,-2202.22,0.00039263,2]
[406327690,1771746640767,-1374.68,0.000393,30]
[406327691,1771746640776,-467.8,0.0003937,30]
[406327692,1771746640785,-301.99,0.00039371,60]
[406327693,1771746640795,-1038.5,0.00039458,30]
[406327694,1771746640804,-515.6,0.00039607,8]
[406327695,1771746640814,-500.0,0.00039607,8]
[406327696,1771746640823,-151.0,0.00039607,120]
[406327697,1771746640832,-151.0,0.00039607,120]
[406327698,1771746640841,-225.18697532,0.00039618,2]
[406327699,1771746640850,-220.93223047,0.00039682,2]
[406327700,1771746640860,-1152.0,0.00039688,120]
[406327701,1771746640870,-1154.0,0.00039693,2]
[406327702,1771746640882,-21780.06,0.000397,2]
[406327703,1771746640891,-1150.0,0.00039704,120]
[406327704,1771746640900,-2202.22,0.00039709,2]
[406327705,1771746640911,-1150.0,0.00039718,7]
[406327706,1771746640920,-1152.0,0.00039747,2]
[406327707,1771746640930,-930.0,0.00039876,7]
[406327708,1771746640940,-1038.5,0.00039942,30]
[406327709,1771746640951,-2690.38660142,0.00039999,2]
[406327710,1771746640960,-152.0,0.0004,120]
[406327711,1771746640970,-391.64529534,0.0004,2]
[406327712,1771746640979,-1564.97627769,0.0004,2]
[406327713,1771746640989,-4119.91855572,0.0004,2]
[406327714,1771746640998,-219.38945358,0.0004,2]
[406327715,1771746641008,-601.22721351,0.0004,2]
[406327716,1771746641018,-315.60000615,0.0004,2]
[406327717,1771746641027,-162.05645958,0.0004,2]
[406327718,1771746641037,-10715.96490443,0.0004,2]
[406327719,1771746641046,-4805.66617137,0.0004,4]
[406327720,1771746641055,-151.0,0.0004,120]
[406327721,1771746641064,-150.61,0.0004,2]
[406327722,1771746641074,-7545.94806155,0.00040014,2]
[406327723,1771746641083,-396.5583709,0.00040014,2]
[406327724,1771746641093,-533.44508449,0.0004011,30]
[406327725,1771746641103,-1150.0,0.00040119,2]
[406327726,1771746641112,-310.48,0.0004015,7]
[406327727,1771746641121,-151.0,0.00040155,120]
[406327728,1771746641131,-2202.22,0.00040155,2]
[406327729,1771746641143,-233.51889341,0.00040166,2]
[406327730,1771746641154,-1038.5,0.00040427,30]
[406327731,1771746641164,-1150.0,0.00040475,7]
[406327732,1771746641173,-1150.0,0.0004053,2]
[406327733,1771746641182,-2202.22,0.00040601,2]
[406327734,1771746641193,-500.0,0.00040628,8]
[406327735,1771746641202,-810.07,0.00040628,8]
[406327736,1771746641212,-521.82,0.00040628,2]
[406327737,1771746641222,-500.0,0.00040628,8]
[406327738,1771746641232,-570.01,0.00040628,8]
[406327739,1771746641243,-500.0,0.00040628,8]
[406327740,1771746641253,-500.0,0.00040628,8]
[406327741,1771746641263,-153.152232,0.00040628,120]
[406327742,1771746641272,-151.0,0.00040628,120]
[406327743,1771746641281,-151.0,0.00040628,120]
[406327744,1771746641291,-151.0,0.00040628,120]
[406327745,1771746641301,-151.0,0.00040628,120]
[406327746,1771746641310,-2214.242032,0.00040628,28]
[406327747,1771746641320,-2214.242032,0.00040628,28]
[406327748,1771746641329,-2214.242032,0.00040628,28]
[406327749,1771746641338,-2214.242032,0.00040628,28]
[406327750,1771746641348,-1734.087404,0.00040628,120]
[406327751,1771746641358,-1734.087404,0.00040628,120]
[406327752,1771746641368,-1734.087404,0.00040628,120]
[406327753,1771746641377,-1734.087411,0.00040628,120]
[406327754,1771746641386,-855.68345202,0.00040702,2]
[406327755,1771746641395,-884.4819891,0.00040702,2]
[406327756,1771746641404,-307.27731077,0.00040702,2]
[406327757,1771746641413,-458.78505011,0.00040702,2]
[406327758,1771746641425,-300.0,0.00040702,2]
[406327759,1771746641434,-371.39458192,0.00040702,2]
[406327760,1771746641443,-300.0,0.00040702,2]
[406327761,1771746641452,-300.0,0.00040702,2]
[406327762,1771746641463,-300.0,0.00040702,2]
[406327763,1771746641472,-518.57454504,0.00040702,2]
[406327764,1771746641481,-306.23261478,0.00040702,2]
[406327765,1771746641493,-300.0,0.00040702,2]
[406327766,1771746641503,-300.0,0.00040702,2]
[406327767,1771746641512,-1082.06179791,0.00040702,2]
[406327768,1771746641522,-300.0,0.00040702,2]
[406327769,1771746641531,-300.0,0.00040702,2]
[406327770,1771746641540,-855.68345202,0.00040702,2]
[406327771,1771746641550,-884.4819891,0.00040702,2]
[406327772,1771746641559,-1563.1197537,0.00040702,2]
[406327773,1771746641568,-300.0,0.00040702,2]
[406327774,1771746641577,-307.27731077,0.00040702,2]
[406327775,1771746641586,-300.0,0.00040702,2]
[406327776,1771746641595,-458.78505011,0.00040702,2]
[406327777,1771746641605,-300.0,0.00040702,2]
[406327778,1771746641614,-371.39458192,0.00040702,2]
[406327779,1771746641623,-300.0,0.00040702,2]
[406327780,1771746641632,-300.0,0.00040702,2]
[406327781,1771746641641,-518.57454504,0.00040702,2]
[406327782,1771746641650,-306.23261478,0.00040702,2]
[406327783,1771746641659,-300.0,0.00040702,2]
[406327784,1771746641669,-566.2287883,0.00040702,2]
[406327785,1771746641677,-1082.06179791,0.00040702,2]
[406327786,1771746641686,-300.0,0.00040702,2]
[406327787,1771746641695,-300.0,0.00040702,2]
[406327788,1771746641704,-300.0,0.00040702,2]
[406327789,1771746641713,-300.0,0.00040702,2]
[406327790,1771746641722,-300.0,0.00040702,2]
[406327791,1771746641731,-855.68345202,0.00040702,2]
[406327792,1771746641742,-884.4819891,0.00040702,2]
[406327793,1771746641751,-1563.1197537,0.00040702,2]
[406327794,1771746641760,-300.0,0.00040702,2]
[406327795,1771746641769,-300.0,0.00040702,2]
[406327796,1771746641778,-300.0,0.00040702,2]
[406327797,1771746641786,-307.27731077,0.00040702,2]
[406327798,1771746641795,-300.0,0.00040702,2]
[406327799,1771746641804,-300.0,0.00040702,2]
[406327800,1771746641813,-458.78505011,0.00040702,2]
[406327801,1771746641821,-300.0,0.00040702,2]
[406327802,1771746641831,-300.0,0.00040702,2]
[406327803,1771746641839,-300.0,0.00040702,2]
[406327804,1771746641848,-371.39458192,0.00040702,2]
[406327805,1771746641857,-300.0,0.00040702,2]
[406327806,1771746641866,-300.0,0.00040702,2]
[406327807,1771746641879,-300.0,0.00040702,2]
[406327808,1771746641888,-300.0,0.00040702,2]
[406327809,1771746641897,-300.0,0.00040702,2]
[406327810,1771746641906,-300.0,0.00040702,2]
[406327811,1771746641915,-518.57454504,0.00040702,2]
[406327812,1771746641923,-306.23261478,0.00040702,2]
[406327813,1771746641933,-300.0,0.00040702,2]
[406327814,1771746641942,-300.0,0.00040702,2]
[406327815,1771746641954,-300.0,0.00040702,2]
[406327816,1771746641963,-300.0,0.00040702,2]
[406327817,1771746641972,-300.0,0.00040702,2]
[406327818,1771746641982,-300.0,0.00040702,2]
[406327819,1771746641991,-300.0,0.00040702,2]
[406327820,1771746642000,-300.0,0.00040702,2]
[406327821,1771746642009,-300.0,0.00040702,2]
[406327822,1771746642018,-1082.06179791,0.00040702,2]
[406327823,1771746642027,-300.0,0.00040702,2]
[406327824,1771746642036,-300.0,0.00040702,2]
[406327825,1771746642045,-300.0,0.00040702,2]
[406327826,1771746642054,-300.0,0.00040702,2]
[406327827,1771746642064,-855.68345202,0.00040702,2]
[406327828,1771746642073,-306.05328416,0.00040702,2]
[406327829,1771746642082,-300.0,0.00040702,2]
[406327830,1771746642091,-884.4819891,0.00040702,2]
[406327831,1771746642100,-300.0,0.00040702,2]
[406327832,1771746642109,-300.0,0.00040702,2]
[406327833,1771746642118,-307.27731077,0.00040702,2]
[406327834,1771746642127,-300.0,0.00040702,2]
[406327835,1771746642136,-458.78505011,0.00040702,2]
[406327836,1771746642146,-300.0,0.00040702,2]
[406327837,1771746642155,-300.0,0.00040702,2]
[406327838,1771746642163,-300.0,0.00040702,2]
[406327839,1771746642174,-371.39458192,0.00040702,2]
[406327840,1771746642183,-300.0,0.00040702,2]
[406327841,1771746642195,-300.0,0.00040702,2]
[406327842,1771746642204,-300.0,0.00040702,2]
[406327843,1771746642214,-300.0,0.00040702,2]
[406327844,1771746642223,-300.0,0.00040702,2]
[406327845,1771746642232,-228.869955,0.000407,60]
[406327847,1771746642242,-1407.759497,0.000407,120]
[406327849,1771746642251,-1407.759497,0.000407,120]
[406327850,1771746642260,-1407.759497,0.000407,120]
[406327851,1771746642269,-1407.759492,0.000407,120]
[406327852,1771746642278,-518.57454504,0.00040702,2]
[406327853,1771746642287,-306.23261478,0.00040702,2]
[406327854,1771746642296,-242.15909246,0.00040714,2]
[406327855,1771746642305,-1150.0,0.00040805,2]
[406327856,1771746642313,-152.0,0.000409,120]
[406327857,1771746642322,-1038.5,0.00040911,30]
[406327858,1771746642331,-33161.0,0.0004095,60]
[406327859,1771746642340,-162.323072,0.0004095,120]
[406327860,1771746642349,-162.323072,0.0004095,120]
[406327862,1771746642358,-162.323072,0.0004095,120]
[406327864,1771746642368,-162.323072,0.0004095,120]
[406327866,1771746642377,-163.183553,0.0004095,120]
[406327867,1771746642386,-151.0,0.0004095,120]
[406327868,1771746642395,-151.0,0.0004095,120]
[406327869,1771746642404,-151.0,0.0004095,120]
[406327870,1771746642414,-264.186171,0.0004095,120]
[406327871,1771746642423,-245.299121,0.0004095,120]
[406327872,1771746642432,-245.299121,0.0004095,120]
[406327873,1771746642442,-245.299121,0.0004095,120]
[406327874,1771746642453,-245.299121,0.0004095,120]
[406327875,1771746642462,-1150.0,0.00040973,120]
[406327876,1771746642471,-2202.22,0.00041048,2]
[406327877,1771746642481,-397.003704,0.00041096,120]
[406327878,1771746642491,-397.003704,0.00041096,120]
[406327879,1771746642499,-397.003704,0.00041096,120]
[406327880,1771746642508,-397.003704,0.00041096,120]
[406327881,1771746642517,-397.003704,0.00041096,120]
[406327882,1771746642527,-397.003704,0.00041096,120]
[406327883,1771746642536,-397.003704,0.00041096,120]
[406327884,1771746642545,-397.003704,0.00041096,120]
[406327885,1771746642554,-151.0,0.00041096,120]
[406327886,1771746642563,-151.0,0.00041096,120]
[406327887,1771746642572,-151.0,0.00041096,120]
[406327888,1771746642581,-151.0,0.00041096,120]
[406327889,1771746642590,-151.0,0.00041096,120]
[406327890,1771746642599,-151.0,0.00041096,120]
[406327891,1771746642609,-151.0,0.00041096,120]
[406327892,1771746642618,-151.0,0.00041096,120]
[406327893,1771746642627,-151.0,0.00041096,120]
[406327894,1771746642636,-151.0,0.00041096,120]
[406327895,1771746642645,-167.29252,0.00041096,120]
[406327896,1771746642654,-795.031675,0.00041096,7]
[406327897,1771746642663,-795.031675,0.00041096,7]
[406327898,1771746642672,-795.031675,0.00041096,7]
[406327899,1771746642680,-795.031675,0.00041096,7]
[406327900,1771746642689,-795.031675,0.00041096,7]
[406327901,1771746642698,-795.031675,0.00041096,7]
[406327902,1771746642709,-795.031675,0.00041096,7]
[406327903,1771746642718,-795.031675,0.00041096,7]
[406327904,1771746642727,-795.031675,0.00041096,7]
[406327905,1771746642736,-795.031675,0.00041096,7]
[406327906,1771746642745,-795.031675,0.00041096,7]
[406327907,1771746642753,-795.031675,0.00041096,7]
[406327908,1771746642762,-795.031675,0.00041096,7]
[406327909,1771746642771,-795.031675,0.00041096,7]
[406327910,1771746642780,-795.031675,0.00041096,7]
[406327911,1771746642789,-795.031675,0.00041096,7]
[406327912,1771746642798,-1150.0,0.00041138,2]
[406327913,1771746642807,-164.25991808,0.000412,30]
[406327914,1771746642816,-164.08169588,0.000412,30]
[406327915,1771746642826,-21780.06,0.000412,2]
[406327916,1771746642837,-8899.10478497,0.00041222,28]
[406327917,1771746642846,-231.75782487,0.00041262,2]
[406327918,1771746642855,-467.8,0.00041295,30]
[406327919,1771746642864,-1038.5,0.00041395,30]
[406327920,1771746642876,-2202.22,0.00041494,2]
[406327921,1771746642885,-1000.0,0.00041551,2]
[406327922,1771746642894,-152.0,0.000417,120]
[406327923,1771746642903,-1038.5,0.0004188,30]
[406327924,1771746642913,-151.0,0.000419,120]
[406327925,1771746642924,-500.607492,0.000419,120]
[406327926,1771746642933,-500.607492,0.000419,120]
[406327927,1771746642944,-500.607492,0.000419,120]
[406327928,1771746642955,-500.607492,0.000419,120]
[406327929,1771746642963,-151.0,0.000419,120]
[406327930,1771746642972,-151.0,0.00041925,120]
[406327931,1771746642981,-397.003704,0.00041925,120]
[406327932,1771746642990,-397.003704,0.00041925,120]
[406327933,1771746642999,-397.003704,0.00041925,120]
[406327934,1771746643008,-151.0,0.00041925,120]
[406327935,1771746643017,-397.003704,0.00041925,120]
[406327936,1771746643026,-233.108796,0.00041925,120]
[406327937,1771746643035,-233.108796,0.00041925,120]
[406327938,1771746643044,-233.108796,0.00041925,120]
[406327939,1771746643053,-233.108796,0.00041925,120]
[406327940,1771746643062,-2202.22,0.0004194,2]
[406327941,1771746643071,-3494.0,0.00041954,2]
[406327942,1771746643079,-1040.0,0.00041954,2]
[406327943,1771746643088,-1276.0,0.00041954,2]
[406327944,1771746643097,-2454.0,0.00041954,2]
[406327945,1771746643106,-1150.0,0.00041956,2]
[406327946,1771746643114,-5668.83434503,0.00041981,15]
[406327947,1771746643123,-515.5881606,0.00042,20]
[406327948,1771746643132,-374.17682307,0.00042,2]
[406327949,1771746643141,-228.0,0.00042,10]
[406327950,1771746643150,-568.34348924,0.00042023,120]
[406327951,1771746643159,-500.0,0.00042023,120]
[406327952,1771746643168,-1066.47,0.00042037,120]
[406327953,1771746643177,-500.0,0.00042037,120]
[406327954,1771746643186,-500.0,0.00042037,120]
[406327955,1771746643195,-515.6,0.00042059,120]
[406327956,1771746643203,-500.0,0.00042059,30]
[406327957,1771746643212,-1070.96496476,0.0004206,60]
[406327958,1771746643221,-151.0,0.0004206,30]
[406327959,1771746643229,-151.0,0.0004206,30]
[406327960,1771746643239,-344.52368933,0.00042061,2]
[406327961,1771746643248,-1152.0,0.00042098,7]
[406327962,1771746643258,-1150.0,0.00042098,2]
[406327963,1771746643267,-22900.74618278,0.00042101,15]
[406327964,1771746643278,-743.0,0.00042161,30]
[406327965,1771746643287,-734.0,0.00042161,30]
[406327966,1771746643298,-744.0,0.00042161,30]
[406327967,1771746643309,-737.0,0.00042161,30]
[406327968,1771746643317,-733.0,0.00042161,30]
[406327969,1771746643328,-750.0,0.00042161,30]
[406327970,1771746643338,-745.0,0.00042161,30]
[406327971,1771746643347,-741.0,0.00042161,30]
[406327972,1771746643356,-745.0,0.00042161,30]
[406327973,1771746643366,-753.0,0.00042161,30]